bitfinex-derivatives/quotes_BTCF0:USTF0_20250207
["timestamp","ask_amount","ask_price","bid_price","bid_amount"]
[1738949585431,0.2051926,97426.0,97418.0,0.2052077]
[1738949585633,0.3608,97432.0,97417.0,0.6666818]
[1738949585832,0.3608,97432.0,97420.0,0.18147355]
[1738949586032,0.2051732,97436.0,97420.0,0.18147355]
[1738949586239,0.002,97446.0,97444.0,0.2051527]
[1738949586427,0.002,97446.0,97445.0,0.3608]
[1738949586627,0.001,97446.0,97445.0,0.3608]
[1738949586832,0.001,97446.0,97445.0,0.5891]
[1738949587434,0.2051494,97447.0,97445.0,0.5891]
[1738949587742,0.001,97446.0,97445.0,0.5891]
[1738949587939,0.001,97446.0,97435.0,0.00015393]
[1738949588137,0.002,97446.0,97445.0,0.004]
[1738949588733,0.2051573,97443.0,97436.0,0.2051703]
[1738949589642,0.001,97446.0,97443.0,0.2051549]
[1738949589839,0.3618,97447.0,97443.0,0.2051549]
[1738949590242,0.001,97447.0,97437.0,0.3608]
[1738949590547,0.001,97446.0,97445.0,0.006]
[1738949591045,0.2051557,97444.0,97443.0,0.001]
[1738949591545,0.2051715,97436.0,97435.0,0.00015393]
[1738949591845,0.5659715,97436.0,97435.0,0.00015393]
[1738949592845,0.5669715,97436.0,97435.0,0.00015393]
[1738949593437,0.2051925,97426.0,97420.0,0.3053218]
[1738949593638,0.3608,97426.0,97409.0,0.3608]
[1738949593946,0.2052243,97411.0,97409.0,0.3608]
[1738949594537,0.205229,97409.0,97407.0,0.5184818]
[1738949594738,0.3608,97408.0,97407.0,0.3053218]
[1738949595441,0.5826,97408.0,97407.0,0.3053218]
[1738949596135,0.5836,97408.0,97407.0,0.3053218]
[1738949597343,0.5836,97408.0,97407.0,0.3083218]
[1738949597851,0.5836,97408.0,97407.0,0.3053218]
[1738949598042,0.7888305,97408.0,97407.0,0.004]
[1738949598645,0.2052726,97388.0,97387.0,0.00154021]
[1738949599151,0.3608,97391.0,97387.0,0.00154021]
[1738949599354,0.3608,97391.0,97390.0,0.2052684]
[1738949599540,0.2052588,97395.0,97391.0,0.2052643]
[1738949599742,0.00060001,97408.0,97406.0,0.2052341]
[1738949599937,0.00945755,97430.0,97427.0,0.2051905]
[1738949600143,0.2051849,97430.0,97429.0,0.2051842]
[1738949600343,0.2051849,97430.0,97427.0,0.3608]
[1738949600344,0.00015402,97438.0,97416.0,0.3608]
[1738949600555,0.2052047,97421.0,97419.0,0.00010288]
[1738949601953,0.2115,97420.0,97419.0,0.00010288]
[1738949602454,0.2115,97420.0,97394.0,0.205259]
[1738949602455,0.2565133,97418.0,97394.0,0.205259]
[1738949602651,0.3608,97411.0,97394.0,0.205259]
[1738949602849,0.2052566,97396.0,97394.0,0.205259]
[1738949603242,0.2052398,97404.0,97400.0,0.2052467]
[1738949603445,0.2052398,97404.0,97391.0,0.2279]
[1738949603651,0.2052398,97404.0,97402.0,0.2052411]
[1738949603850,0.00015402,97412.0,97391.0,0.2279]
[1738949604047,0.00015402,97412.0,97396.0,0.2052552]
[1738949604246,0.18147355,97410.0,97391.0,0.2279]
[1738949604447,0.3608,97407.0,97391.0,0.2279]
[1738949604649,0.2052642,97392.0,97391.0,0.2279]
[1738949605551,0.2052524,97398.0,97396.0,0.2052557]
[1738949605855,0.003,97407.0,97401.0,0.2052449]
[1738949606044,0.2052395,97404.0,97403.0,0.2052366]
[1738949606444,0.2052726,97388.0,97387.0,0.00154021]
[1738949606653,0.3608,97405.0,97387.0,0.36234021]
[1738949606955,0.2052575,97396.0,97394.0,0.2052588]
[1738949607158,0.003,97407.0,97388.0,0.2156]
[1738949607347,0.2052528,97398.0,97396.0,0.2052537]
[1738949607547,0.2052602,97394.0,97392.0,0.2052642]
[1738949607747,0.2052642,97392.0,97391.0,0.003]
[1738949607947,0.0513089,97406.0,97388.0,0.2156]
[1738949608160,0.2052705,97389.0,97388.0,0.2156]
[1738949608753,0.2052705,97389.0,97387.0,0.00154021]
[1738949608951,0.3608,97391.0,97342.0,0.3608]
[1738949609154,0.3608,97378.0,97353.0,0.6529]
[1738949609458,0.3608,97378.0,97367.0,0.2053148]
[1738949609459,0.2053129,97369.0,97367.0,0.2053148]
[1738949609654,0.2053248,97363.0,97362.0,0.3053218]
[1738949611054,0.05127123,97363.0,97362.0,0.3053218]
[1738949611256,0.2053248,97363.0,97362.0,0.3053218]
[1738949612263,0.2053375,97357.0,97356.0,0.36638616]
[1738949612456,0.002,97363.0,97357.0,0.2053362]
[1738949612457,0.3608,97359.0,97357.0,0.2053362]
[1738949612654,0.001,97363.0,97362.0,0.004]
[1738949613251,0.001,97363.0,97362.0,0.209327]
[1738949614363,0.18147355,97372.0,97352.0,0.3608]
[1738949614657,0.205322,97365.0,97357.0,0.2053367]
[1738949614867,0.00015402,97381.0,97364.0,0.3608]
[1738949615065,0.00015402,97381.0,97379.0,0.5660903]
[1738949615262,0.56602,97413.0,97397.0,0.2052532]
[1738949615454,0.2051904,97427.0,97397.0,0.42424]
[1738949615659,0.3608,97429.0,97423.0,0.2051975]
[1738949615854,0.2051631,97440.0,97423.0,0.2051975]
[1738949616256,0.18147355,97433.0,97411.0,0.2091]
[1738949616463,0.3608,97437.0,97424.0,0.2051963]
[1738949616464,0.00015402,97434.0,97424.0,0.2051963]
[1738949617469,0.00015402,97434.0,97422.0,0.06344]
[1738949617659,0.00153977,97451.0,97433.0,0.3608]
[1738949617859,0.00153977,97451.0,97448.0,0.2051457]
[1738949618276,0.00153977,97451.0,97444.0,0.3608]
[1738949618480,0.00153977,97451.0,97440.0,0.2051615]
[1738949618885,0.01053977,97451.0,97440.0,0.2051615]
[1738949619083,0.01953977,97451.0,97440.0,0.2051615]
[1738949619284,0.01953977,97451.0,97443.0,0.3608]
[1738949619484,0.01953977,97451.0,97449.0,0.2051429]
[1738949620575,0.01053977,97451.0,97449.0,0.2051429]
[1738949620780,0.018,97451.0,97449.0,0.2051429]
[1738949620985,0.00015394,97455.0,97446.0,0.0634]
[1738949621279,0.00153943,97471.0,97458.0,0.2051231]
[1738949621488,0.00153943,97471.0,97459.0,0.2051206]
[1738949621686,0.00153943,97471.0,97462.0,0.3608]
[1738949621885,0.00153943,97471.0,97461.0,0.2051179]
[1738949622186,0.2051257,97458.0,97454.0,0.3608]
[1738949622374,0.2051257,97458.0,97448.0,0.00153942]
[1738949622375,0.009,97455.0,97448.0,0.00153942]
[1738949622578,0.009,97455.0,97453.0,0.2051347]
[1738949623080,0.01053943,97471.0,97470.0,0.2050995]
[1738949624082,0.01053943,97471.0,97466.0,0.3608]
[1738949624692,0.01053943,97471.0,97470.0,0.2060994]
[1738949624886,0.01953943,97471.0,97470.0,0.2060994]
[1738949625092,0.01953943,97471.0,97470.0,0.2050994]
[1738949625890,0.01953943,97471.0,97466.0,0.3628]
[1738949626085,0.01953943,97471.0,97469.0,0.2051012]
[1738949626974,0.00153911,97491.0,97470.0,0.06336]
[1738949627179,0.00153911,97491.0,97490.0,0.5658574]
[1738949627381,0.3608,97523.0,97490.0,0.3608]
[1738949627582,0.2049992,97518.0,97506.0,0.5658225]
[1738949627980,0.3608,97523.0,97490.0,0.64143046]
[1738949628182,0.2050176,97509.0,97490.0,0.5658571]
[1738949628380,0.3608,97511.0,97502.0,0.00015384]
[1738949628586,0.00015384,97522.0,97502.0,0.00015384]
[1738949628890,0.2050086,97514.0,97502.0,0.00015384]
[1738949629190,0.005,97518.0,97513.0,0.2050077]
[1738949629488,0.005,97518.0,97514.0,0.2050055]
[1738949629685,0.00015384,97522.0,97514.0,0.2050055]
[1738949629888,0.00515384,97522.0,97516.0,0.3608]
[1738949630087,0.00515384,97522.0,97521.0,0.2049922]
[1738949631091,0.00515384,97522.0,97521.0,0.5657922]
[1738949631588,0.01415384,97522.0,97521.0,0.5667922]
[1738949632196,0.01415384,97522.0,97521.0,0.3618]
[1738949633191,0.00915384,97522.0,97521.0,0.3618]
[1738949635194,0.01415384,97522.0,97521.0,0.3628]
[1738949636093,0.01415384,97522.0,97521.0,0.002]
[1738949638697,0.00515384,97522.0,97521.0,0.002]
[1738949639396,0.00515384,97522.0,97521.0,0.21684579]
[1738949639992,0.00515384,97522.0,97521.0,0.01185359]
[1738949640197,0.00515384,97522.0,97521.0,0.002]
[1738949641099,0.22395384,97522.0,97521.0,0.002]
[1738949641292,0.23374507,97522.0,97521.0,0.002]
[1738949641490,0.20503,97503.0,97502.0,0.00015384]
[1738949641792,0.56583,97503.0,97502.0,0.00015384]
[1738949641991,0.3608,97503.0,97487.0,0.3608]
[1738949642193,0.2050509,97494.0,97492.0,0.2050518]
[1738949642688,0.004,97503.0,97501.0,0.205033]
[1738949643389,0.2090307,97503.0,97501.0,0.205033]
[1738949643791,0.22364192,97503.0,97501.0,0.205033]
[1738949644001,0.01861122,97503.0,97493.0,0.18176065]
[1738949644297,0.205049,97494.0,97492.0,0.00015384]
[1738949645204,0.205049,97494.0,97493.0,0.2050511]
[1738949645694,0.3608,97502.0,97492.0,0.00015384]
[1738949645897,0.002,97494.0,97493.0,0.2050511]
[1738949646293,0.2050511,97493.0,97492.0,0.00015384]
[1738949646594,0.5658511,97493.0,97492.0,0.00015384]
[1738949646794,0.2051036,97468.0,97466.0,0.3608]
[1738949646990,0.2051036,97468.0,97463.0,0.2051133]
[1738949647192,0.2051036,97468.0,97464.0,0.2051114]
[1738949647503,0.00972047,97480.0,97479.0,0.2050797]
[1738949647800,0.3608,97492.0,97478.0,0.3608]
[1738949647995,0.20521404,97489.0,97484.0,0.2050697]
[1738949648195,0.20521404,97489.0,97480.0,0.18176065]
[1738949648196,0.00015384,97489.0,97470.0,0.00015384]
[1738949648396,0.2050973,97471.0,97470.0,0.00015384]
[1738949649595,0.2050973,97471.0,97470.0,0.00415384]
[1738949650702,0.5658973,97471.0,97470.0,0.00415384]
[1738949650897,0.2051415,97450.0,97442.0,0.2051576]
[1738949651598,0.2051415,97450.0,97438.0,0.3608]
[1738949652102,0.2051415,97450.0,97449.0,0.005]
[1738949652807,0.00015393,97459.0,97457.0,0.2051263]
[1738949653908,0.2051247,97458.0,97457.0,0.2051263]
[1738949654307,0.00115393,97459.0,97457.0,0.2051263]
[1738949655004,0.00015393,97459.0,97457.0,0.2051263]
[1738949655209,0.001,97458.0,97457.0,0.2051263]
[1738949656805,0.05233116,97461.0,97457.0,0.2051263]
[1738949657007,0.00957856,97468.0,97457.0,0.2051263]
[1738949657207,0.0015394,97470.0,97458.0,0.18176065]
[1738949657399,0.2326,97487.0,97464.0,0.3608]
[1738949657805,0.2051069,97467.0,97464.0,0.3608]
[1738949658009,0.2051069,97467.0,97466.0,0.00015393]
[1738949658214,0.00015393,97485.0,97466.0,0.00015393]
[1738949658711,0.5659045,97468.0,97466.0,0.00015393]
[1738949658900,0.2207,97467.0,97466.0,0.00015393]
[1738949659102,0.2051415,97450.0,97449.0,0.18315339]
[1738949660210,0.2051415,97450.0,97449.0,0.24433689]
[1738949660916,0.2051415,97450.0,97449.0,0.24633689]
[1738949661217,0.21005393,97459.0,97449.0,0.60713689]
[1738949661218,0.00015393,97459.0,97449.0,0.60713689]
[1738949661416,0.00015393,97459.0,97457.0,0.3608]
[1738949661806,0.00015393,97459.0,97457.0,0.5659265]
[1738949663517,0.00115393,97459.0,97457.0,0.57567295]
[1738949664111,0.00115393,97459.0,97457.0,0.3608]
[1738949664112,0.20627763,97459.0,97457.0,0.3608]
[1738949664515,0.00115393,97459.0,97458.0,0.2051247]
[1738949665016,0.36195393,97459.0,97450.0,0.2303]
[1738949665208,0.2051455,97449.0,97447.0,0.00153909]
[1738949666020,0.2051332,97454.0,97447.0,0.00153909]
[1738949666213,0.2112,97458.0,97447.0,0.00153909]
[1738949666414,0.2051457,97448.0,97447.0,0.00153909]
[1738949667224,0.2051457,97448.0,97447.0,0.00653909]
[1738949668334,0.2051457,97448.0,97447.0,0.003]
[1738949670440,0.2051605,97441.0,97440.0,0.00015393]
[1738949671738,0.2051605,97441.0,97440.0,0.00315393]
[1738949671939,0.3608,97442.0,97427.0,0.0015394]
[1738949672129,0.2052365,97405.0,97400.0,0.3608]
[1738949672327,0.2052405,97403.0,97400.0,0.3608]
[1738949672735,0.2052405,97403.0,97392.0,0.21786]
[1738949672937,0.2052405,97403.0,97389.0,0.3608]
[1738949673437,0.3608,97405.0,97396.0,0.2052551]
[1738949673628,0.3608,97405.0,97402.0,0.18897219]
[1738949673828,0.00979835,97405.0,97402.0,0.18897219]
[1738949674042,0.42488381,97411.0,97402.0,0.18897219]
[1738949674342,0.4243238,97411.0,97396.0,0.2052551]
[1738949674523,0.4243238,97411.0,97402.0,0.005]
[1738949675345,0.00015393,97412.0,97409.0,0.2052272]
[1738949675730,0.004,97411.0,97409.0,0.2052272]
[1738949677027,0.2165,97449.0,97428.0,0.2051878]
[1738949677233,0.15173578,97450.0,97428.0,0.3608]
[1738949677539,0.2051476,97448.0,97432.0,0.2051788]
[1738949677746,0.3608,97446.0,97432.0,0.2051788]
[1738949677939,0.3608,97446.0,97429.0,0.4552]
[1738949678340,0.20516,97442.0,97429.0,0.45535393]
[1738949678537,0.00015393,97449.0,97441.0,0.3608]
[1738949678738,0.00015393,97449.0,97447.0,0.2051475]
[1738949679542,0.00015393,97449.0,97445.0,0.3608]
[1738949679738,0.2051504,97446.0,97437.0,0.5659672]
[1738949679945,0.2051536,97445.0,97437.0,0.5659672]
[1738949680130,0.2051538,97445.0,97437.0,0.3608]
[1738949680444,0.2051609,97441.0,97437.0,0.3608]
[1738949680642,0.009,97446.0,97437.0,0.3608]
[1738949680643,0.2051658,97439.0,97437.0,0.3608]
[1738949680939,0.2051658,97439.0,97420.0,0.18176065]
[1738949680940,0.2051836,97430.0,97429.0,0.00015393]
[1738949682143,0.21642001,97437.0,97429.0,0.00015393]
[1738949682341,0.5659672,97438.0,97430.0,0.2051825]
[1738949682641,0.009,97439.0,97437.0,0.001]
[1738949682944,0.009,97439.0,97436.0,0.2051694]
[1738949683147,0.009,97439.0,97438.0,0.2051667]
[1738949683532,0.2051361,97453.0,97445.0,0.2051503]
[1738949683740,0.15173578,97454.0,97448.0,0.2051456]
[1738949684041,0.15173578,97454.0,97448.0,0.5659456]
[1738949684242,0.15173578,97454.0,97448.0,0.3608]
[1738949684447,0.15173578,97454.0,97453.0,0.2051351]
[1738949685347,0.00989579,97471.0,97453.0,0.2051351]
[1738949685542,0.2051248,97458.0,97448.0,0.001]
[1738949685746,0.00015393,97463.0,97453.0,0.3608]
[1738949685938,0.00015393,97463.0,97458.0,0.2051233]
[1738949686543,0.00015393,97463.0,97448.0,0.19288384]
[1738949686848,0.013,97454.0,97453.0,0.2051351]
[1738949687234,0.004,97454.0,97453.0,0.2051351]
[1738949687445,0.00215393,97463.0,97453.0,0.5451351]
[1738949687754,0.00980187,97500.0,97479.0,0.2050804]
[1738949687937,0.15621875,97480.0,97479.0,0.5658804]
[1738949688137,0.15621875,97480.0,97479.0,0.3608]
[1738949688638,0.15621875,97480.0,97479.0,0.5658804]
[1738949689647,0.00015393,97489.0,97479.0,0.3608]
[1738949689955,0.00015393,97489.0,97488.0,0.5658615]
[1738949690142,0.15160999,97497.0,97488.0,0.3608]
[1738949690443,0.15160999,97497.0,97496.0,0.5658446]
[1738949690952,0.15160999,97497.0,97489.0,0.2050586]
[1738949691145,0.15160999,97497.0,97490.0,0.2050555]
[1738949691340,0.15160999,97497.0,97496.0,0.3608]
[1738949691546,0.15160999,97497.0,97495.0,0.2050454]
[1738949691743,0.15760999,97497.0,97495.0,0.2050454]
[1738949691947,0.15760999,97497.0,97488.0,0.5658597]
[1738949692139,0.2050522,97493.0,97488.0,0.5658597]
[1738949692644,0.2050557,97491.0,97488.0,0.3608]
[1738949692955,0.2050744,97482.0,97479.0,0.3608]
[1738949693250,0.20505,97494.0,97484.0,0.205069]
[1738949693460,0.2050548,97492.0,97484.0,0.18176065]
[1738949693642,0.20902001,97496.0,97484.0,0.18176065]
[1738949693844,0.205067,97486.0,97484.0,0.18176065]
[1738949694044,0.3608,97494.0,97479.0,0.3608]
[1738949694340,0.2050846,97477.0,97476.0,0.00153878]
[1738949697353,0.2110846,97477.0,97476.0,0.00153878]
[1738949697551,0.2170846,97477.0,97476.0,0.00253878]
[1738949699457,0.22682825,97477.0,97476.0,0.00253878]
[1738949699658,0.2050972,97471.0,97470.0,0.00015393]
[1738949700549,0.005,97477.0,97475.0,0.2050885]
[1738949700746,0.3608,97509.0,97475.0,0.2050885]
[1738949700747,0.01011316,97496.0,97476.0,0.3608]
[1738949700957,0.2201,97522.0,97495.0,0.3608]
[1738949701160,0.2050074,97514.0,97508.0,0.2050179]
[1738949701347,0.3608,97521.0,97495.0,0.3608]
[1738949701752,0.3608,97512.0,97490.0,0.18176065]
[1738949701958,0.2050224,97507.0,97500.0,0.18176065]
[1738949702162,0.2050224,97507.0,97504.0,0.2050265]
[1738949702361,0.00015384,97513.0,97508.0,0.001]
[1738949702665,0.009,97511.0,97510.0,0.2050152]
[1738949703162,0.2050173,97509.0,97507.0,0.3608]
[1738949703357,0.00015384,97513.0,97511.0,0.2050122]
[1738949704963,0.00815384,97513.0,97511.0,0.2060122]
[1738949705365,0.00815384,97513.0,97511.0,0.001]
[1738949705662,0.22216304,97513.0,97511.0,0.2070127]
[1738949706854,0.01715384,97513.0,97511.0,0.2070127]
[1738949708760,0.01715384,97513.0,97512.0,0.3608]
[1738949708954,0.00153845,97529.0,97528.0,0.2049773]
[1738949709154,0.00153845,97529.0,97528.0,0.5657773]
[1738949709961,0.2242,97543.0,97528.0,0.7216]
[1738949710167,0.3608,97572.0,97528.0,0.7216]
[1738949710168,0.2049214,97555.0,97548.0,0.2049346]
[1738949710364,0.00010225,97545.0,97542.0,0.3608]
[1738949710557,0.00010225,97545.0,97543.0,0.2049458]
[1738949711658,0.00110225,97545.0,97543.0,0.2059458]
[1738949712059,0.2049437,97544.0,97543.0,0.001]
[1738949712765,0.2049437,97544.0,97543.0,0.002]
[1738949713062,0.4151437,97544.0,97543.0,0.002]
[1738949713662,0.4151437,97544.0,97543.0,0.001]
[1738949713962,0.7759437,97544.0,97543.0,0.002]
[1738949715261,0.00010225,97545.0,97543.0,0.001]
[1738949715459,0.00010225,97545.0,97543.0,0.2069458]
[1738949716270,0.2049006,97565.0,97561.0,0.2049075]
[1738949716463,0.3608,97566.0,97555.0,0.18176065]
[1738949716664,0.3608,97566.0,97563.0,0.2049026]
[1738949716968,0.3608,97566.0,97555.0,0.18176065]
[1738949717151,0.3608,97566.0,97559.0,0.2049113]
[1738949717359,0.3608,97566.0,97562.0,0.2049052]
[1738949717555,0.3608,97566.0,97564.0,0.2049008]
[1738949717767,0.18148673,97572.0,97564.0,0.3608]
[1738949717960,0.2048937,97568.0,97564.0,0.3608]
[1738949718974,0.2048986,97566.0,97564.0,0.3608]
[1738949719965,0.2048986,97566.0,97564.0,0.3618]
[1738949720172,0.2048986,97566.0,97564.0,0.3628]
[1738949720473,0.5656986,97566.0,97564.0,0.002]
[1738949720660,0.2048986,97566.0,97564.0,0.002]
[1738949721963,0.2163,97575.0,97565.0,0.3608]
[1738949722161,0.2048875,97571.0,97569.0,0.204891]
[1738949722558,0.2163,97575.0,97565.0,0.3608]
[1738949722761,0.2048965,97567.0,97565.0,0.3608]
[1738949723171,0.2048965,97567.0,97565.0,0.3628]
[1738949723873,0.2048965,97567.0,97566.0,0.2048975]
[1738949724474,0.2048965,97567.0,97565.0,0.002]
[1738949725676,0.2048965,97567.0,97566.0,0.001]
[1738949725873,0.3608,97568.0,97544.0,0.2172]
[1738949726075,0.2049269,97552.0,97541.0,0.20648699]
[1738949726369,0.2049269,97552.0,97541.0,0.00153779]
[1738949726770,0.3608,97552.0,97541.0,0.00153779]
[1738949727071,0.2049479,97542.0,97541.0,0.00153779]
[1738949727670,0.5657479,97542.0,97541.0,0.00153779]
[1738949728075,0.2179,97550.0,97541.0,0.00253779]
[1738949728370,0.2179,97550.0,97544.0,0.2049426]
[1738949729269,0.2049407,97546.0,97544.0,0.2049426]
[1738949729569,0.00015349,97551.0,97549.0,0.2049332]
[1738949730173,0.002,97550.0,97549.0,0.2049332]
[1738949730568,0.20508269,97551.0,97549.0,0.001]
[1738949730569,0.00015349,97551.0,97549.0,0.001]
[1738949730877,0.2049311,97550.0,97549.0,0.001]
[1738949731979,0.00215349,97551.0,97549.0,0.2059332]
[1738949732367,0.001,97550.0,97549.0,0.2069332]
[1738949732575,0.002,97550.0,97549.0,0.2069332]
[1738949733081,0.002,97550.0,97549.0,0.2059332]
[1738949733082,0.001,97550.0,97549.0,0.2059332]
[1738949733281,0.00215349,97551.0,97549.0,0.2069332]
[1738949733676,0.00115349,97551.0,97549.0,0.2059332]
[1738949733981,0.001,97550.0,97549.0,0.2069332]
[1738949734774,0.001,97550.0,97549.0,0.2059332]
[1738949734973,0.001,97550.0,97549.0,0.2069332]
[1738949735974,0.00115349,97551.0,97549.0,0.2069332]
[1738949736383,0.00015349,97551.0,97549.0,0.2059332]
[1738949736681,0.001,97550.0,97549.0,0.002]
[1738949736875,0.001,97550.0,97549.0,0.001]
[1738949737075,0.00115349,97551.0,97550.0,0.2049311]
[1738949738083,0.00115349,97551.0,97549.0,0.002]
[1738949738299,0.2049311,97550.0,97549.0,0.002]
[1738949738496,0.00115349,97551.0,97550.0,0.2049311]
[1738949738789,0.00015349,97551.0,97550.0,0.2059311]
[1738949738997,0.00115349,97551.0,97550.0,0.2069311]
[1738949739382,0.00015349,97551.0,97550.0,0.2059311]
[1738949739986,0.00015349,97551.0,97550.0,0.2069311]
[1738949740184,0.00115349,97551.0,97550.0,0.2069311]
[1738949741199,0.00115349,97551.0,97550.0,0.002]
[1738949741698,0.00115349,97551.0,97542.0,0.18297219]
[1738949741699,0.2049458,97543.0,97542.0,0.18297219]
[1738949741906,0.2049563,97538.0,97516.0,0.3608]
[1738949742796,0.2049668,97533.0,97516.0,0.3608]
[1738949743000,0.2050173,97509.0,97504.0,0.36136]
[1738949743190,0.2050173,97509.0,97500.0,0.24542572]
[1738949744197,0.00015376,97518.0,97503.0,0.3608]
[1738949744493,0.00015376,97518.0,97515.0,0.2050035]
[1738949744694,0.00015376,97518.0,97517.0,0.2050004]
[1738949745606,0.00215376,97518.0,97517.0,0.21302499]
[1738949745898,0.00153841,97530.0,97529.0,0.2049752]
[1738949746400,0.00153841,97530.0,97522.0,0.204988]
[1738949746797,0.00153841,97530.0,97525.0,0.2049835]
[1738949747103,0.00153841,97530.0,97520.0,0.18176065]
[1738949747308,0.00153841,97530.0,97528.0,0.2049771]
[1738949747800,0.00015349,97536.0,97524.0,0.3608]
[1738949748102,0.5591,97571.0,97555.0,0.2049206]
[1738949748305,0.19882001,97571.0,97555.0,0.2049206]
[1738949748496,0.1983,97571.0,97555.0,0.2049206]
[1738949749402,0.22149166,97556.0,97555.0,0.2059206]
[1738949750299,0.22149166,97556.0,97555.0,0.001]
[1738949751003,0.009,97556.0,97555.0,0.002]
[1738949752099,0.2139185,97556.0,97555.0,0.002]
[1738949754811,0.6698,97556.0,97527.0,0.00153778]
[1738949755002,0.5657773,97528.0,97527.0,8e-08]
[1738949755198,0.3608,97528.0,97527.0,8e-08]
[1738949755508,0.5657771,97528.0,97527.0,8e-08]
[1738949756302,0.5657771,97528.0,97527.0,0.00100008]
[1738949756708,0.5657771,97528.0,97527.0,8e-08]
[1738949757009,0.5727771,97528.0,97527.0,0.00100008]
[1738949757714,0.5727771,97528.0,97527.0,0.00200008]
[1738949758412,0.5807771,97528.0,97527.0,0.00200008]
[1738949758709,0.63062872,97528.0,97527.0,0.00200008]
[1738949758905,0.26982872,97528.0,97527.0,0.00200008]
[1738949759100,0.26282872,97528.0,97527.0,0.00100008]
[1738949759300,0.26982872,97528.0,97527.0,0.00200008]
[1738949759910,0.26882872,97528.0,97527.0,0.00200008]
[1738949762210,0.06385162,97528.0,97527.0,0.00200008]
[1738949762518,0.06385162,97528.0,97527.0,0.36280008]
[1738949762716,0.00015376,97537.0,97527.0,0.36280008]
[1738949762915,0.5656728,97578.0,97565.0,0.2048994]
[1738949763102,0.5656728,97578.0,97537.0,0.1024789]
[1738949763103,0.2048784,97575.0,97567.0,0.2048949]
[1738949763412,0.2048784,97575.0,97555.0,0.06276]
[1738949763413,0.2048784,97575.0,97565.0,0.2048982]
[1738949763714,0.2048784,97575.0,97556.0,0.2111]
[1738949763909,0.2048784,97575.0,97566.0,0.2048958]
[1738949764117,0.2048784,97575.0,97556.0,0.21125376]
[1738949764509,0.2048784,97575.0,97568.0,0.2048919]
[1738949764910,0.3608,97578.0,97556.0,0.21125376]
[1738949765205,0.001,97575.0,97556.0,0.21225376]
[1738949765409,0.18176065,97570.0,97565.0,0.2048978]
[1738949766007,0.007,97575.0,97565.0,0.2058978]
[1738949766214,0.204884,97573.0,97565.0,0.2058978]
[1738949766514,0.001,97575.0,97561.0,0.3608]
[1738949766716,0.2049007,97565.0,97556.0,0.00908663]
[1738949766904,0.3608,97566.0,97556.0,0.00808663]
[1738949767109,0.3608,97566.0,97565.0,0.2049001]
[1738949767716,0.3608,97566.0,97556.0,0.00808663]
[1738949767912,0.3608,97558.0,97556.0,0.00808663]
[1738949768110,0.2049169,97557.0,97556.0,0.00015376]
[1738949768913,0.3608,97558.0,97556.0,0.20507126]
[1738949769321,0.2049057,97563.0,97556.0,0.00015376]
[1738949769613,0.002,97565.0,97564.0,0.2049022]
[1738949770015,0.3608,97566.0,97564.0,0.2049022]
[1738949771925,0.3608,97566.0,97564.0,0.21289608]
[1738949772319,0.003,97566.0,97564.0,0.21289608]
[1738949772621,0.00153813,97576.0,97575.0,0.2048791]
[1738949772816,0.15170996,97579.0,97578.0,0.2048728]
[1738949773019,0.15170996,97579.0,97566.0,0.18176065]
[1738949773323,0.35658146,97579.0,97573.0,0.2048824]
[1738949773525,0.3608,97576.0,97573.0,0.2048824]
[1738949773822,0.3608,97576.0,97575.0,0.002]
[1738949773823,0.3668,97576.0,97575.0,0.002]
[1738949774021,0.006,97576.0,97575.0,0.002]
[1738949774724,0.006,97576.0,97575.0,0.001]
[1738949775218,0.18205195,97580.0,97579.0,0.2048707]
[1738949776522,0.18205195,97580.0,97573.0,0.001]
[1738949776523,0.2048756,97577.0,97573.0,0.001]
[1738949776714,0.39392055,97580.0,97579.0,0.001]
[1738949777724,0.18905195,97580.0,97579.0,0.001]
[1738949778226,0.18905195,97580.0,97579.0,0.002]
[1738949778426,0.007,97580.0,97579.0,0.002]
[1738949778724,0.2048672,97581.0,97579.0,0.001]
[1738949779918,0.3608,97584.0,97579.0,0.001]
[1738949779919,0.008,97580.0,97579.0,0.001]
[1738949780221,0.2049169,97557.0,97545.0,0.06421785]
[1738949780821,0.3608,97558.0,97547.0,0.18176065]
[1738949781022,0.2049069,97562.0,97561.0,0.2049059]
[1738949782329,0.2049169,97557.0,97556.0,0.21295092]
[1738949783520,0.3608,97560.0,97559.0,0.2049127]
[1738949784829,0.2048918,97569.0,97567.0,0.2048958]
[1738949785027,0.204907,97562.0,97560.0,0.2049092]
[1738949785223,0.2049148,97558.0,97556.0,0.00903292]
[1738949785828,0.2049148,97558.0,97556.0,0.00803292]
[1738949787528,0.3608,97563.0,97556.0,0.00803292]
[1738949787928,0.3608,97563.0,97562.0,0.2049066]
[1738949788635,0.3618,97563.0,97562.0,0.2049066]
[1738949788832,0.3628,97563.0,97562.0,0.2049066]
[1738949789534,0.002,97563.0,97562.0,0.2049066]
[1738949789841,0.3608,97584.0,97578.0,0.204873]
[1738949790034,0.35636804,97579.0,97578.0,0.204873]
[1738949790239,0.2048795,97575.0,97563.0,0.4094]
[1738949790440,0.15149714,97579.0,97578.0,0.204873]
[1738949791135,0.15249714,97579.0,97578.0,0.205873]
[1738949791550,0.0512024,97609.0,97578.0,0.205873]
[1738949791551,0.00060001,97596.0,97578.0,0.3718]
[1738949791730,0.57329166,97616.0,97585.0,0.2048583]
[1738949791731,0.02715825,97586.0,97585.0,0.2048583]
[1738949792039,0.02715825,97586.0,97585.0,0.2674983]
[1738949792238,0.2048287,97600.0,97589.0,0.2048484]
[1738949792446,0.2048302,97599.0,97591.0,0.2048448]
[1738949792643,0.3608,97606.0,97585.0,0.0707179]
[1738949792844,0.2048338,97597.0,97585.0,0.0707179]
[1738949793137,0.2048477,97591.0,97585.0,0.0707179]
[1738949793342,0.2048477,97591.0,97585.0,0.2755762]
[1738949793641,0.3608,97598.0,97585.0,0.0717179]
[1738949793941,0.3608,97587.0,97585.0,0.0090779]
[1738949794443,0.009,97586.0,97585.0,0.0090779]
[1738949794754,0.009,97586.0,97585.0,0.0100779]
[1738949794939,0.3608,97595.0,97585.0,0.0100779]
[1738949795134,0.3608,97595.0,97590.0,0.2048463]
[1738949795440,0.2048477,97591.0,97585.0,0.0090779]
[1738949795640,0.3698,97586.0,97585.0,0.002]
[1738949795841,0.5746562,97586.0,97585.0,0.002]
[1738949796138,0.3698,97595.0,97585.0,0.002]
[1738949796342,0.3698,97595.0,97585.0,0.18376065]